fUST/lending_fUST_20250309
["ID","MTS","AMOUNT","RATE_DAILY","PERIOD"]
[355748516,1741529361681,-500.0,0.00032471,2]
[355748517,1741529361704,-500.0,0.00032471,2]
[355748518,1741529361727,-500.0,0.00032471,2]
[355748519,1741529361754,-1995.10577764,0.00032471,2]
[355748520,1741529361776,-500.0,0.00032471,2]
[355748521,1741529361804,-1995.10577764,0.00032471,2]
[355748522,1741529361828,-500.0,0.00032471,2]
[355748523,1741529361855,-1995.10577764,0.00032471,2]
[355748524,1741529361878,-500.0,0.00032471,2]
[355748525,1741529361906,-1995.10577764,0.00032471,2]
[355748526,1741529361929,-500.0,0.00032471,2]
[355748527,1741529361952,-500.0,0.00032471,2]
[355748528,1741529361980,-1995.10577764,0.00032471,2]
[355748529,1741529362003,-500.0,0.00032471,2]
[355748530,1741529362030,-1995.10577764,0.00032471,2]
[355748531,1741529362053,-500.0,0.00032471,2]
[355748532,1741529362075,-500.0,0.00032471,2]
[355748533,1741529362103,-1995.10577764,0.00032471,2]
[355748534,1741529362127,-500.0,0.00032471,2]
[355748535,1741529362150,-500.0,0.00032471,2]
[355748536,1741529362178,-1995.10577764,0.00032471,2]
[355748537,1741529362201,-500.0,0.00032471,2]
[355748538,1741529362229,-1995.10577764,0.00032471,2]
[355748539,1741529362252,-500.0,0.00032471,2]
[355748540,1741529362274,-500.0,0.00032471,2]
[355748541,1741529362303,-1995.10577764,0.00032471,2]
[355748542,1741529362325,-500.0,0.00032471,2]
[355748543,1741529362354,-1995.10577764,0.00032471,2]
[355748544,1741529362380,-500.0,0.00032471,2]
[355748545,1741529362404,-404.12071193,0.00032471,2]
[355748546,1741529362431,-1995.10577764,0.00032471,2]
[355748547,1741529362453,-500.0,0.00032471,2]
[355748548,1741529362479,-1995.10577764,0.00032471,2]
[355748549,1741529362500,-500.0,0.00032471,2]
[355748550,1741529362527,-1995.10577764,0.00032471,2]
[355748551,1741529362549,-500.0,0.00032471,2]
[355748552,1741529362570,-500.0,0.00032471,2]
[355748553,1741529362592,-500.0,0.00032471,2]
[355748554,1741529362614,-500.0,0.00032471,2]
[355748555,1741529362636,-500.0,0.00032471,2]
[355748556,1741529362658,-500.0,0.00032471,2]
[355748557,1741529362685,-1995.10577764,0.00032471,2]
[355748558,1741529362707,-500.0,0.00032471,2]
[355748559,1741529362732,-1995.10577764,0.00032471,2]
[355748560,1741529362753,-500.0,0.00032471,2]
[355748561,1741529362774,-500.0,0.00032471,2]
[355748562,1741529362799,-1995.10577764,0.00032471,2]
[355748563,1741529362820,-500.0,0.00032471,2]
[355748564,1741529362842,-500.0,0.00032471,2]
[355748565,1741529362868,-1995.10577764,0.00032471,2]
[355748566,1741529362893,-1995.10577764,0.00032471,2]
[355748567,1741529362916,-500.0,0.00032471,2]
[355748568,1741529362941,-1995.10577764,0.00032471,2]
[355748569,1741529362966,-1995.10577764,0.00032471,2]
[355748570,1741529362988,-500.0,0.00032471,2]
[355748571,1741529363014,-1995.10577764,0.00032471,2]
[355748572,1741529363035,-500.0,0.00032471,2]
[355748573,1741529363056,-500.0,0.00032471,2]
[355748574,1741529363082,-1995.10577764,0.00032471,2]
[355748575,1741529363104,-500.0,0.00032471,2]
[355748576,1741529363130,-1995.10577764,0.00032471,2]
[355748577,1741529363153,-500.0,0.00032471,2]
[355748578,1741529363178,-1995.10577764,0.00032471,2]
[355748579,1741529363200,-500.0,0.00032471,2]
[355748580,1741529363225,-1995.10577764,0.00032471,2]
[355748581,1741529363252,-1995.10577764,0.00032471,2]
[355748582,1741529363276,-1995.10577764,0.00032471,2]
[355748583,1741529363298,-500.0,0.00032471,2]
[355748584,1741529363319,-500.0,0.00032471,2]
[355748585,1741529363347,-1984.60522092,0.00032471,2]
[355748586,1741529363368,-500.0,0.00032471,2]
[355748587,1741529363389,-500.0,0.00032471,2]
[355748588,1741529363414,-1984.60522092,0.00032471,2]
[355748589,1741529363436,-500.0,0.00032471,2]
[355748590,1741529363460,-1984.60522092,0.00032471,2]
[355748591,1741529363484,-500.0,0.00032471,2]
[355748592,1741529363508,-1984.60522092,0.00032471,2]
[355748593,1741529363626,-500.0,0.00032471,2]
[355748594,1741529363652,-1984.60522092,0.00032471,2]
[355748595,1741529363674,-600.0,0.00032471,2]
[355748596,1741529363701,-1984.60522092,0.00032471,2]
[355748597,1741529363726,-1984.60522092,0.00032471,2]
[355748598,1741529363751,-1984.60522092,0.00032471,2]
[355748599,1741529363779,-1984.60522092,0.00032471,2]
[355748600,1741529363805,-1984.60522092,0.00032471,2]
[355748601,1741529363835,-1984.60522092,0.00032471,2]
[355748602,1741529363863,-1984.60522092,0.00032471,2]
[355748603,1741529363890,-1984.60522092,0.00032471,2]
[355748604,1741529363916,-1984.60522092,0.00032471,2]
[355748605,1741529363942,-1984.60522092,0.00032471,2]
[355748606,1741529363966,-1984.60522092,0.00032471,2]
[355748607,1741529363990,-1984.60522092,0.00032471,2]
[355748608,1741529364015,-1984.60522092,0.00032471,2]
[355748609,1741529364036,-500.0,0.00032473,5]
[355748610,1741529364057,-214.83544598,0.00032473,5]
[355748611,1741529364080,-500.0,0.00032473,5]
[355748612,1741529364101,-500.0,0.00032473,2]
[355748613,1741529364121,-500.0,0.00032473,5]
[355748614,1741529364141,-505.57002045,0.00032473,5]
[355748615,1741529364162,-370.23883468,0.00032473,5]
[355748616,1741529364182,-500.0,0.00032473,5]
[355748617,1741529364203,-500.0,0.00032473,5]
[355748618,1741529364223,-170.15,0.00032482,2]
[355748619,1741529364244,-15182.5795471,0.00032483,2]
[355748620,1741529364265,-24900.0,0.00032493,2]
[355748621,1741529364285,-509.8519251,0.00032767,64]
[355748622,1741529364306,-1257.0903564,0.000329,6]
[355748623,1741529364328,-166.66666666,0.00033463,2]
[355748624,1741529364352,-250.0,0.00033563,2]
[355748625,1741529364374,-500.0,0.0003372,2]
[355748626,1741529364396,-600.0,0.00033891,2]
[355748627,1741529364418,-500.0,0.00033891,2]
[355748628,1741529364440,-9785.6838006,0.00033912,2]
[355748629,1741529364461,-622.2,0.00033946,2]
[355748630,1741529364482,-297.99655969,0.00033973,5]
[355748631,1741529364503,-181.909271,0.00033992,2]
[355748632,1741529364524,-181.909271,0.00033992,120]
[355748633,1741529364548,-645.2214,0.00034001,2]
[355748634,1741529364569,-766.62218443,0.00034056,2]
[355748635,1741529364592,-1067.34450702,0.00034288,2]
[355748636,1741529364616,-15182.5795471,0.00034298,2]
[355748637,1741529364639,-365.72,0.000343,30]
[355748638,1741529364660,-1071.76,0.000343,30]
[355748639,1741529364681,-159.89,0.000343,5]
[355748640,1741529364702,-514.82396607,0.000343,3]
[355748641,1741529364723,-5556.90323588,0.00034308,2]
[355748642,1741529364784,-3250.90981661,0.00034308,2]
[355748643,1741529364810,-1192.18694751,0.00034308,2]
[355748644,1741529364832,-219.75382492,0.00034373,5]
[355748645,1741529364853,-560.0,0.00034906,2]
[355748646,1741529364873,-5536.1789293,0.00035,11]
[355748647,1741529364895,-150.0,0.00035045,2]
[355748648,1741529364915,-5536.1789293,0.00035819,11]
[355748649,1741529364936,-241.709896,0.0003589,2]
[355748650,1741529364957,-151.0,0.00035915,2]
[355748651,1741529364978,-160.0,0.00035938,2]
[355748652,1741529364998,-167.643,0.00035999,5]
[355748653,1741529365019,-157.757,0.00035999,5]
[355748654,1741529365040,-236.751,0.00035999,5]
[355748655,1741529365062,-200.0,0.00036,3]
[355748656,1741529365086,-440.71140075,0.000362,98]
[355748657,1741529365108,-150.0,0.00036415,2]
[355748658,1741529365129,-440.71140073,0.00036454,99]
[355748659,1741529365151,-185.3565246,0.00036463,2]
[355748660,1741529365173,-5536.1789293,0.000371,11]
[355748661,1741529365196,-783.0,0.00037525,2]
[355748662,1741529365220,-150.0,0.00037785,2]
[355748663,1741529365652,-1000.0,0.00037952,5]
[355748664,1741529365674,-508.15869348,0.00037952,5]
[355748665,1741529365695,-1000.0,0.00037952,5]
[355748666,1741529365717,-5536.1789293,0.00037968,11]
[355748667,1741529365740,-6510.49280392,0.00038617,2]
[355748668,1741529365762,-500.0,0.00038767,120]
[355748669,1741529365783,-365.72,0.000389,30]
[355748670,1741529365805,-150.0,0.00039155,2]
[355748671,1741529365828,-15182.5795471,0.0003919,3]
[355748672,1741529365849,-1071.76,0.000392,30]
[355748673,1741529365870,-6039.46792288,0.000392,15]
[355748674,1741529365892,-500.0,0.00039767,120]
[355748675,1741529365913,-1893.75811916,0.00040117,15]
[355748676,1741529366421,2729.46904276,0.00032371,2]
[355748680,1741529371055,178.08,0.00035,120]
[355748681,1741529371434,2729.46904275,0.00036161,2]
[355748682,1741529386329,500.0,0.00032471,2]
[355748683,1741529386376,500.0,0.00032471,2]
[355748684,1741529386436,473.251061,0.00032471,2]
[355748685,1741529386460,26.748939,0.00032471,2]
[355748686,1741529386492,484.60522089,0.00032471,2]
[355748687,1741529392097,150.0,0.00034307,2]
[355748688,1741529392356,150.0,0.00035676,2]
[355748689,1741529392617,150.0,0.00037046,2]
[355748690,1741529409073,600.0,0.0003246,2]
[355748691,1741529410383,622.2,0.00032515,2]
[355748692,1741529411223,645.2214,0.0003257,2]
[355748693,1741529411849,669.0945918,0.00032625,2]
[355748694,1741529412561,693.8510917,0.0003268,2]
[355748695,1741529413544,719.52358209,0.00032735,2]
[355748696,1741529414168,746.14595463,0.0003279,2]
[355748697,1741529415012,773.75335495,0.00032845,2]
[355748767,1741529432223,-150.0,0.00038416,2]
[355748769,1741529432234,-470.47962455,0.0003848,2]
[355748770,1741529432244,-150.0,0.00039786,2]
[355748771,1741529432254,-2729.46904275,0.00039951,2]
[355748772,1741529432265,-550.0,0.00040199,5]
[355748773,1741529432275,-500.0,0.000402,5]
[355748774,1741529432285,-500.0,0.000402,5]
[355748775,1741529432295,-500.0,0.000402,5]
[355748776,1741529432305,-500.0,0.000402,5]
[355748777,1741529432315,-500.0,0.000402,5]
[355748778,1741529432326,-160.0,0.00041,14]
[355748779,1741529432336,-500.0,0.00041082,12]
[355748780,1741529432346,-5000.0,0.00041095,2]
[355748781,1741529432356,-150.0,0.00041156,30]
[355748782,1741529432366,-241.709896,0.00041211,2]
[355748783,1741529432379,-6039.46792288,0.000413,15]
[355748784,1741529432389,-440.71140073,0.00041621,120]
[355748785,1741529432400,-1509.64588772,0.00042124,90]
[355748786,1741529432415,-254.6368216,0.00042526,30]
[355748787,1741529432425,-275.627,0.00042529,14]
[355748788,1741529432435,-500.0,0.00042658,120]
[355748789,1741529432445,-500.0,0.00042712,120]
[355748791,1741529432455,-236.751,0.00042854,14]
[355748792,1741529432465,-277.0,0.0004287,5]
[355748795,1741529432475,-500.0,0.0004315,120]
[355748797,1741529432486,-160.0,0.00043151,90]
[355748799,1741529432495,-6542.75691645,0.000434,19]
[355748801,1741529432505,-2729.46904275,0.00043741,28]
[355748803,1741529432515,-500.0,0.00043835,120]
[355748805,1741529432524,-15182.5795471,0.0004389,3]
[355748807,1741529432534,-365.72,0.000439,30]
[355748809,1741529432544,-500.0,0.00044383,120]
[355748811,1741529432554,-499.97,0.00044399,120]
[355748813,1741529432564,-308.45357118,0.00044575,120]
[355748815,1741529432573,-308.45357118,0.00044795,120]
[355748817,1741529432583,-500.0,0.00044931,120]
[355748819,1741529432592,-308.45357118,0.00045014,120]
[355748821,1741529432602,-308.45357118,0.00045233,120]
[355748823,1741529432612,-308.45357118,0.00045452,120]
[355748825,1741529432621,-500.0,0.00045479,120]
[355748827,1741529432631,-4073.91610484,0.000455,19]
[355748829,1741529432641,-308.45357118,0.00045644,120]
[355748831,1741529432652,-500.40774184,0.00045679,10]
[355748833,1741529432662,-1000.0,0.00045679,10]
[355748835,1741529432673,-308.45357118,0.00045863,120]
[355748837,1741529432683,-3420.7879478,0.00046,120]
[355748839,1741529432693,-500.0,0.00046027,120]
[355748841,1741529432703,-308.45357118,0.00046082,120]
[355748843,1741529432713,-308.45357118,0.00046301,120]
[355748846,1741529432724,-179.37296693,0.00046373,2]
[355748848,1741529432734,-179.37296693,0.00046424,2]
[355748849,1741529432744,-169.99,0.00046455,10]
[355748852,1741529432754,-294.1,0.00046455,10]
[355748854,1741529432764,-31850.04006,0.00046464,14]
[355748855,1741529432774,-52074.00959391,0.00046465,4]
[355748858,1741529432787,-23838.88814179,0.00046465,4]
[355748860,1741529432797,-500.0,0.00046473,10]
[355748862,1741529432807,-179.37296693,0.00046475,2]
[355748864,1741529432819,-32887.22472041,0.00046475,2]
[355748870,1741529432859,4698.84607392,0.00028,10]
[355749020,1741529436145,-245.08,0.00046465,10]
[355749021,1741529436158,-94.81,0.00046475,2]
[355749022,1741529436180,-2083.825,0.00046475,2]
[355749037,1741529438114,-280.24645662,0.00046475,2]
[355749038,1741529438128,-2184.07634875,0.00046475,2]
[355749039,1741529438141,-359.65199774,0.00046475,2]
[355749041,1741529439063,-11.22514506,0.00046475,2]
[355749153,1741529440855,-269.862,0.00045478,31]
[355749155,1741529440866,-305.30087421,0.00045478,31]
[355749157,1741529440876,-441.32295134,0.00045478,120]
[355749159,1741529440886,-10191.22224837,0.00046475,2]
[355749161,1741529440898,-58512.73433416,0.00046475,2]
[355749325,1741529443166,-11216.84343818,0.00046475,2]
[355749346,1741529443347,-813.72104228,0.00046475,2]
[355749352,1741529443389,-20.93133493,0.00046475,2]
[355749434,1741529446197,-204.24,0.00046465,10]
[355749435,1741529446207,-1179.85067999,0.00046475,2]
[355749437,1741529446375,-95574.66028685,0.00046475,2]
[355749438,1741529446391,-6588.97696666,0.00046475,2]
[355749439,1741529446401,-3000.0,0.00046475,2]
[355749440,1741529446411,-857.41,0.000465,30]
[355749441,1741529446422,-308.45357118,0.00046521,120]
[355749442,1741529446432,-241.709896,0.00046532,2]
[355749443,1741529446442,-15182.5795471,0.00046555,4]
[355749444,1741529446453,-60730.3181886,0.00046565,4]
[355749445,1741529446463,-500.0,0.00046573,10]
[355749446,1741529446473,-500.0,0.00046573,10]
[355749447,1741529446483,-500.0,0.00046573,10]
[355749448,1741529446493,-502.3078147,0.00046573,10]
[355749449,1741529446502,-500.0,0.00046573,10]
[355749450,1741529446512,-500.0,0.00046575,120]
[355749451,1741529446521,-500.0,0.00046575,120]
[355749452,1741529446531,-500.0,0.00046575,120]
[355749453,1741529446542,-500.0,0.00046575,120]
[355749454,1741529446551,-500.0,0.00046575,120]
[355749455,1741529446561,-500.0,0.00046575,120]
[355749456,1741529446571,-500.0,0.00046575,120]
[355749457,1741529446580,-500.0,0.00046575,120]
[355749458,1741529446590,-500.0,0.00046575,120]
[355749459,1741529446600,-500.0,0.00046575,120]
[355749460,1741529446609,-500.0,0.00046575,120]
[355749461,1741529446619,-500.0,0.00046575,120]
[355749462,1741529446629,-500.0,0.00046575,120]
[355749463,1741529446638,-210.30161755,0.00046575,120]
[355749464,1741529446647,-500.0,0.00046575,120]
[355749465,1741529446656,-500.0,0.00046575,120]
[355749466,1741529446666,-500.0,0.00046575,120]
[355749467,1741529446676,-500.0,0.00046575,120]
[355749468,1741529446686,-500.0,0.00046575,120]
[355749469,1741529446695,-500.0,0.00046575,120]
[355749470,1741529446705,-500.0,0.00046575,120]
[355749471,1741529446714,-500.0,0.00046575,120]
[355749472,1741529446724,-500.0,0.00046575,120]
[355749473,1741529446734,-500.0,0.00046575,120]
[355749474,1741529446744,-500.0,0.00046575,120]
[355749475,1741529446754,-500.0,0.00046575,120]
[355749476,1741529446764,-500.0,0.00046575,120]
[355749477,1741529446774,-500.0,0.00046575,120]
[355749478,1741529446785,-500.0,0.00046575,120]
[355749479,1741529446794,-593.43074701,0.00046575,120]
[355749480,1741529446804,-500.0,0.00046575,120]
[355749481,1741529446813,-500.0,0.00046575,120]
[355749482,1741529446823,-767.44,0.00046575,120]
[355749483,1741529446832,-500.0,0.00046575,120]
[355749484,1741529446844,-500.0,0.00046575,120]
[355749485,1741529446853,-500.0,0.00046575,120]
[355749486,1741529446863,-500.0,0.00046575,120]
[355749487,1741529446872,-584.9981269,0.00046575,120]
[355749488,1741529446882,-500.0,0.00046575,120]
[355749489,1741529446891,-500.0,0.00046575,120]
[355749490,1741529446901,-500.0,0.00046575,120]
[355749491,1741529446911,-500.0,0.00046575,120]
[355749492,1741529446921,-500.0,0.00046575,120]
[355749493,1741529446930,-669.42,0.00046575,120]
[355749494,1741529446941,-500.0,0.00046575,120]
[355749495,1741529446951,-500.0,0.00046575,15]
[355749496,1741529446961,-500.0,0.00046575,120]
[355749497,1741529446971,-663.73,0.00046575,120]
[355749498,1741529446981,-500.0,0.00046575,120]
[355749499,1741529446990,-500.0,0.00046575,120]
[355749500,1741529447001,-500.0,0.00046575,120]
[355749501,1741529447010,-3384.16,0.00046575,120]
[355749502,1741529447020,-500.0,0.00046575,120]
[355749503,1741529447030,-500.0,0.00046575,120]
[355749504,1741529447040,-500.0,0.00046575,120]
[355749505,1741529447049,-500.0,0.00046575,120]
[355749506,1741529447060,-500.0,0.00046575,120]
[355749507,1741529447069,-500.0,0.00046575,120]
[355749508,1741529447079,-500.0,0.00046575,120]
[355749509,1741529447088,-1449.19,0.00046575,120]
[355749510,1741529447098,-500.0,0.00046575,120]
[355749511,1741529447107,-694.16,0.00046575,120]
[355749512,1741529447117,-500.0,0.00046575,120]
[355749513,1741529447238,-500.0,0.00046575,120]
[355749514,1741529447249,-500.0,0.00046575,120]
[355749515,1741529447260,-500.0,0.00046575,120]
[355749516,1741529447274,-500.0,0.00046575,120]
[355749517,1741529447284,-500.0,0.00046575,120]
[355749518,1741529447294,-500.0,0.00046575,120]
[355749519,1741529447304,-500.0,0.00046575,120]
[355749520,1741529447314,-500.0,0.00046575,120]
[355749521,1741529447324,-500.0,0.00046575,120]
[355749522,1741529447334,-500.0,0.00046575,120]
[355749523,1741529447344,-500.0,0.00046575,120]
[355749524,1741529447354,-500.0,0.00046575,120]
[355749525,1741529447365,-500.0,0.00046575,120]
[355749526,1741529447377,-500.0,0.00046575,120]
[355749527,1741529447397,-500.0,0.00046575,120]
[355749528,1741529447407,-500.0,0.00046575,120]
[355749529,1741529447429,-500.0,0.00046575,120]
[355749530,1741529447439,-500.0,0.00046575,120]
[355749531,1741529447449,-500.0,0.00046575,120]
[355749532,1741529447459,-500.0,0.00046575,120]
[355749533,1741529447471,-500.0,0.00046575,120]
[355749534,1741529447481,-500.0,0.00046575,120]
[355749535,1741529447490,-500.0,0.00046575,120]
[355749536,1741529447501,-500.0,0.00046575,120]
[355749537,1741529447511,-500.0,0.00046575,120]
[355749538,1741529447520,-500.0,0.00046575,120]
[355749539,1741529447530,-500.0,0.00046575,120]
[355749540,1741529447541,-472.62492767,0.00046575,120]
[355749541,1741529447551,-500.0,0.00046575,120]
[355749542,1741529447561,-500.0,0.00046575,120]
[355749543,1741529447570,-500.0,0.00046575,120]
[355749544,1741529447580,-500.0,0.00046575,120]
[355749545,1741529447590,-500.0,0.00046575,120]
[355749546,1741529447601,-1080.56,0.00046575,120]
[355749547,1741529447611,-500.0,0.00046575,120]
[355749548,1741529447620,-409.83936503,0.00046575,120]
[355749549,1741529447630,-500.0,0.00046575,120]
[355749550,1741529447640,-500.0,0.00046575,120]
[355749551,1741529447651,-500.0,0.00046575,120]
[355749552,1741529447662,-500.0,0.00046575,120]
[355749553,1741529447671,-500.0,0.00046575,120]
[355749554,1741529447681,-500.0,0.00046575,120]
[355749555,1741529447691,-500.0,0.00046575,120]
[355749556,1741529447701,-500.0,0.00046575,120]
[355749557,1741529447711,-500.0,0.00046575,120]
[355749558,1741529447720,-500.0,0.00046575,120]
[355749559,1741529447730,-500.0,0.00046575,120]
[355749560,1741529447740,-500.0,0.00046575,120]
[355749561,1741529447751,-500.0,0.00046575,120]
[355749562,1741529447763,-500.0,0.00046575,120]
[355749563,1741529447773,-500.0,0.00046575,120]
[355749564,1741529447782,-500.0,0.00046575,120]
[355749565,1741529447791,-500.0,0.00046575,120]
[355749566,1741529447801,-518.48875408,0.00046575,120]
[355749567,1741529447811,-500.0,0.00046575,120]
[355749568,1741529447820,-500.0,0.00046575,120]
[355749569,1741529447830,-512.71517023,0.00046575,5]
[355749570,1741529447839,-500.0,0.00046575,120]
[355749571,1741529447848,-500.0,0.00046575,120]
[355749572,1741529447857,-500.0,0.00046575,120]
[355749573,1741529447867,-500.0,0.00046575,120]
[355749574,1741529447877,-500.0,0.00046575,120]
[355749575,1741529447887,-500.0,0.00046575,120]
[355749576,1741529447896,-500.0,0.00046575,120]
[355749577,1741529447906,-500.0,0.00046575,120]
[355749578,1741529447915,-500.0,0.00046575,120]
[355749579,1741529447925,-578.30042123,0.00046575,120]
[355749580,1741529447936,-500.0,0.00046575,120]
[355749581,1741529447946,-500.0,0.00046575,120]
[355749582,1741529447956,-520.7,0.00046575,120]
[355749583,1741529447965,-530.27423315,0.00046575,120]
[355749584,1741529447974,-552.67547533,0.00046575,120]
[355749585,1741529447984,-500.0,0.00046575,120]
[355749586,1741529447994,-500.0,0.00046575,120]
[355749587,1741529448003,-500.0,0.00046575,120]
[355749588,1741529448014,-502.43577232,0.00046575,120]
[355749589,1741529448028,-500.0,0.00046575,120]
[355749590,1741529448038,-500.0,0.00046575,120]
[355749591,1741529448049,-793.71,0.00046575,120]
[355749592,1741529448059,-500.0,0.00046575,120]
[355749593,1741529448069,-500.0,0.00046575,120]
[355749594,1741529448080,-500.0,0.00046575,120]
[355749595,1741529448089,-500.0,0.00046575,120]
[355749596,1741529448099,-512.7294608,0.00046575,120]
[355749597,1741529448110,-500.0,0.00046575,120]
[355749598,1741529448120,-500.0,0.00046575,120]
[355749599,1741529448130,-1255.84,0.00046575,120]
[355749600,1741529448140,-500.0,0.00046575,120]
[355749601,1741529448150,-500.0,0.00046575,120]
[355749602,1741529448160,-500.0,0.00046575,120]
[355749603,1741529448171,-500.0,0.00046575,120]
[355749604,1741529448182,-2766.49,0.00046575,120]
[355749605,1741529448194,-500.0,0.00046575,120]
[355749606,1741529448205,-500.0,0.00046575,120]
[355749607,1741529448218,-500.0,0.00046575,120]
[355749608,1741529448231,-500.0,0.00046575,120]
[355749609,1741529448243,-500.0,0.00046575,120]
[355749610,1741529448255,-4055.82,0.00046575,120]
[355749611,1741529448266,-1039.62,0.00046575,120]
[355749612,1741529448277,-500.0,0.00046575,120]
[355749613,1741529448288,-500.0,0.00046575,120]
[355749614,1741529448299,-500.0,0.00046575,120]
[355749615,1741529448311,-500.0,0.00046575,120]
[355749616,1741529448322,-500.0,0.00046575,120]
[355749617,1741529448334,-500.0,0.00046575,120]
[355749618,1741529448345,-999.0,0.00046575,120]
[355749619,1741529448357,-500.0,0.00046575,120]
[355749620,1741529448370,-500.0,0.00046575,120]
[355749621,1741529448385,-500.0,0.00046575,120]
[355749622,1741529448396,-500.0,0.00046575,120]
[355749623,1741529448407,-500.0,0.00046575,120]
[355749624,1741529448419,-500.0,0.00046575,120]
[355749625,1741529448430,-589.4913186,0.00046575,120]
[355749626,1741529448441,-500.0,0.00046575,120]
[355749627,1741529448453,-500.0,0.00046575,120]
[355749628,1741529448465,-1067.29834222,0.00046575,120]
[355749643,1741530379219,5000.0,0.00028,10]
[355749644,1741530395402,5000.0,0.00028,10]
[355749645,1741530411864,5000.0,0.00028,10]
[355749646,1741530429140,-187.94091348,0.00027944,2]
[355749647,1741530429163,-166.66666668,0.000308,2]
[355749648,1741530429187,-400.0,0.00030899,2]
[355749649,1741530429209,-1817.76967137,0.000309,2]
[355749650,1741530432130,-522.38620734,0.000309,2]
[355749652,1741530519052,23232.3,0.000145,2]
[355749660,1741530548095,-1215.52383633,0.000288,2]
[355749661,1741530548118,-400.0,0.00030899,2]
[355749662,1741530548139,-2868.75476154,0.000309,2]
[355749663,1741530548161,-1388.46078966,0.000309,5]
[355749664,1741530548183,-734.2256583,0.00031,10]
[355749665,1741530548204,-944.98972117,0.00031,10]
[355749666,1741530548225,-305.5673951,0.00031708,2]
[355749667,1741530548247,-1283.65990077,0.0003213,2]
[355749668,1741530551090,-170.24180563,0.0003213,2]
[355749669,1741530551113,-200.116326,0.00032423,120]
[355749670,1741530551136,-500.0,0.00032481,2]
[355749671,1741530551161,-500.0,0.00032481,2]
[355749672,1741530551187,-500.0,0.00032481,2]
[355749673,1741530551211,-500.0,0.00032481,2]
[355749674,1741530551239,-1246.0619202,0.00032481,2]
[355749675,1741530551262,-500.0,0.00032481,2]
[355749676,1741530551284,-500.0,0.00032481,2]
[355749677,1741530551307,-500.0,0.00032481,2]
[355749678,1741530551330,-249.19632031,0.00032481,2]
[355749679,1741530551353,-500.0,0.00032481,2]
[355749680,1741530551375,-500.0,0.00032481,2]
[355749681,1741530551398,-594.31202459,0.00032481,2]
[355749682,1741530551425,-1246.0619202,0.00032481,2]
[355749683,1741530551448,-500.0,0.00032481,2]
[355749684,1741530551471,-500.0,0.00032481,2]
[355749685,1741530551499,-1246.0619202,0.00032481,2]
[355749686,1741530551521,-500.0,0.00032481,2]
[355749687,1741530551544,-500.0,0.00032481,2]
[355749688,1741530551567,-500.0,0.00032481,2]
[355749689,1741530551595,-1246.0619202,0.00032481,2]
[355749690,1741530551619,-500.0,0.00032481,2]
[355749691,1741530551646,-1246.0619202,0.00032481,2]
[355749692,1741530551672,-500.0,0.00032481,2]
[355749693,1741530551694,-500.0,0.00032481,2]
[355749694,1741530551720,-419.38376674,0.00032481,2]
[355749695,1741530551744,-549.18396896,0.00032481,2]
[355749696,1741530551772,-1246.0619202,0.00032481,2]
[355749697,1741530551796,-500.0,0.00032481,2]
[355749698,1741530551819,-500.0,0.00032481,2]
[355749699,1741530551850,-1246.0619202,0.00032481,2]
[355749700,1741530551874,-500.0,0.00032481,2]
[355749701,1741530551902,-1246.0619202,0.00032481,2]
[355749702,1741530551929,-1246.0619202,0.00032481,2]